Cogmind - Beta 16 @@@ ROGUE MODE // 2025.11.10 @ 13:54:42 Player: Zane Result: Self-destructed Performance ------------- Evolutions (5) 2500 Regions Visited (17) 3400 Robots Destroyed (148) 740 Value Destroyed (5930) 5930 Prototype IDs (19) 380 Alien Tech Used (0) 0 Bonus (1937) 1937 TOTAL SCORE: 14887 Bonus ------- Follower Combat Kills 990 Network Hubs Disabled 200 Met Data Miner 300 Met Zhirov 300 Built Enhanced Grunts 300 Friendly Fire -153 Cogmind --------- Core Integrity 142/1000 Matter 241/300 Energy 100/100 System Corruption 32% Temperature Cool (0) Movement Treading (170) Location -5/Hub_04(d) Parts ------- > --- POWER (2) -------- (None) > --- PROPULSION (3) --- Armored Medium Treads Armored Medium Treads > --- UTILITY (8) ------ Targeting Computer Advanced Targeting Computer Melee Analysis Suite Improved Target Analyzer Hacking Suite > --- WEAPON (4) ------- Enhanced Gauss Cannon > --- INVENTORY (5) ---- VSS Leg Improved Reaction Control System Peak State ------------ > --- POWER ------------ Light Angular Momentum Engine Reinforced Fission Core > --- PROPULSION ------- Armored Medium Treads Centrium Heavy Treads > --- UTILITY ---------- Targeting Computer Advanced Targeting Computer Melee Analysis Suite Target Analyzer Improved Reaction Control System Improved Reaction Control System Hacking Suite > --- WEAPON ----------- Tesla Rifle Tesla Rifle Heavy Laser Carbide Saw > --- INVENTORY -------- Armored Medium Treads Armored Medium Treads VSS Leg [Rating: 80] Favorites ----------- Power Neutrino Core Engine Hybrid Deuterium Engine Power Core Neutrino Core Propulsion Light Treads Treads Light Treads Leg Carbon-fiber Leg Utility Target Analyzer Device Advanced Heat Sink Storage Medium Storage Unit Processor Target Analyzer Hackware Hacking Suite Protection Improved Medium Armor Plating Weapon Autogun Energy Gun Particle Gun Energy Cannon Heavy Ion Cannon Ballistic Gun Autogun Ballistic Cannon Hypervelocity Gauss Cannon Launcher Improved Grenade Launcher Special Weapon Mining Laser Slashing Weapon Carbide Saw Build | -11 -10 -10 -10 -8 -7 -7 -7 -7 -6 -6 -6 -6 -5 -5 -5 -5 -5 ------- Run | Yrd Mat Min Sub Mat Fac Low Low Dat Pro Fac Low Low Fac Ext Cet Arc Hub Slots Evolved 10 | . . . . 4 2 . . . . 2 . . 2 . . . . Power 1 | . . . . . . . . . . . . . 1 . . . . Propulsion 1 | . . . . . . . . . . . . . 1 . . . . Utility 6 | . . . . 4 1 . . . . 1 . . . . . . . Weapon 2 | . . . . . 1 . . . . 1 . . . . . . . Parts Attached 127 | 7 . . 10 18 2 3 10 . 10 12 1 1 12 15 1 1 24 Power 15 | 1 . . 2 3 . . 1 . 1 1 . . 3 1 . 1 1 Engine 7 | 1 . . 2 . . . . . . . . . 2 1 . . 1 Core 8 | . . . . 3 . . 1 . 1 1 . . 1 . . 1 . Reactor . | . . . . . . . . . . . . . . . . . . Propulsion 31 | 2 . . 3 5 . . 1 . 5 1 . . 4 5 . . 5 Treads 21 | 2 . . . 4 . . . . 2 . . . 3 5 . . 5 Leg 10 | . . . 3 1 . . 1 . 3 1 . . 1 . . . . Wheel . | . . . . . . . . . . . . . . . . . . Hover . | . . . . . . . . . . . . . . . . . . Flight . | . . . . . . . . . . . . . . . . . . Utility 47 | 2 . . . 5 1 . 6 . 4 5 1 1 4 6 . . 12 Device 23 | 1 . . . 2 . . 2 . 2 3 1 1 2 2 . . 7 Storage 2 | 1 . . . 1 . . . . . . . . . . . . . Processor 9 | . . . . 2 . . 1 . . 1 . . 2 . . . 3 Hackware 1 | . . . . . . . . . . . . . . . . . 1 Protection 12 | . . . . . 1 . 3 . 2 1 . . . 4 . . 1 Artifact . | . . . . . . . . . . . . . . . . . . Weapon 34 | 2 . . 5 5 1 3 2 . . 5 . . 1 3 1 . 6 Energy Gun 9 | 1 . . . . . . 1 . . 2 . . . . 1 . 4 Energy Cannon 3 | . . . . . . . . . . 1 . . 1 1 . . . Ballistic Gun 12 | 1 . . 3 2 1 2 1 . . 2 . . . . . . . Ballistic Cannon 6 | . . . 1 2 . . . . . . . . . 2 . . 1 Launcher 2 | . . . . 1 . 1 . . . . . . . . . . . Special Weapon 1 | . . . 1 . . . . . . . . . . . . . . Impact Weapon . | . . . . . . . . . . . . . . . . . . Slashing Weapon 1 | . . . . . . . . . . . . . . . . . 1 Piercing Weapon . | . . . . . . . . . . . . . . . . . . Special Melee Weapon . | . . . . . . . . . . . . . . . . . . Unidentified Prototypes 3 | . . . . . . 1 . . . . . . . . . . 2 Corrupted Parts 2 | . . . . . . . . . . . . . . . . . 2 System Corruption 7 | . . . . . . . . . . . . . . . . . 7 Parts Lost 77 | . . . 5 6 . . 13 . 9 1 1 . 4 9 1 8 20 Power 11 | . . . 2 2 . . 1 . 2 . . . . . . 1 3 Propulsion 13 | . . . 2 1 . . 3 . 3 . . . . 1 . . 3 Utility 31 | . . . . 1 . . 5 . 4 . 1 . 3 5 . 4 8 Weapon 22 | . . . 1 2 . . 4 . . 1 . . 1 3 1 3 6 Highest Loss Streak 8 | . . . 3 2 . . 6 . 3 1 1 . 4 3 1 8 8 To Critical Strikes . | . . . . . . . . . . . . . . . . . . Average Backups 8 | 2 5 7 6 9 8 9 8 10 9 9 10 10 8 8 9 7 3 Power . | . 2 1 1 . . . . 1 . . 1 1 . 1 1 . . Propulsion 2 | 1 2 2 . 1 2 1 1 1 1 1 2 2 1 5 6 4 2 Utility 2 | . . 1 2 3 3 4 1 . . 4 4 4 3 . 1 1 . Weapon 3 | . 1 1 2 4 3 3 4 8 7 3 3 3 2 1 . . . Tool/Special . | . . . . . . . . . . . . . . . . . . Unused Backups 26 | . . 5 2 5 . . . . 6 3 . . . 1 1 2 1 Power 4 | . . 2 . 1 . . . . . 1 . . . . . . . Propulsion 7 | . . 2 . 1 . . . . . . . . . 1 1 1 1 Utility 4 | . . . 1 2 . . . . . . . . . . . 1 . Weapon 11 | . . 1 1 1 . . . . 6 2 . . . . . . . Tool/Special . | . . . . . . . . . . . . . . . . . . Average Slot Usage (%) 92 | . 100 100 98 87 91 92 89 92 89 98 98 97 97 98 90 77 69 Engine 4 | . 14 14 13 . . . . . . . . . 6 11 6 3 1 Core 4 | . . . . 7 7 7 6 7 5 4 6 6 4 . 3 7 8 Treads 10 | . 28 28 12 9 15 15 10 7 8 . . . 3 15 11 11 10 Leg 5 | . . . 14 8 . . . . 2 13 13 13 13 . . . . Device 15 | . 14 14 14 17 15 15 12 15 14 20 20 23 22 15 11 8 12 Storage 7 | . 14 14 14 9 7 7 7 7 7 6 6 6 5 5 5 3 . Processor 13 | . . . . 17 15 15 20 23 18 19 18 13 11 17 17 17 19 Protection 4 | . . . . . 7 7 8 7 7 6 6 6 3 6 11 6 . Energy Gun 5 | . 14 14 4 . . . 4 7 7 9 13 13 9 2 1 5 6 Energy Cannon 1 | . . . . . . . . . . . 6 6 6 8 5 3 . Ballistic Gun 10 | . 14 14 16 4 6 14 15 15 15 14 6 6 5 5 . . . Ballistic Cannon 4 | . . . 6 13 15 3 . . . . . . . 4 11 6 . Peak Build Rating 80 | 7 7 8 17 33 36 38 38 37 41 60 61 64 70 78 79 79 80 Average Rating 37 | 5 7 7 10 28 35 37 35 37 35 50 59 61 66 68 76 66 59 On Entrance 39 | . 7 7 8 17 31 36 37 37 37 36 59 59 64 64 78 79 48 Avg Prop Armor Cover (%) 6 | . . . . 5 . . . . 10 . . . . . . . . Naked Turns . | . . . . . . . . . . . . . . . . . . Heaviest Build 87 | 12 12 12 22 33 37 39 41 41 41 54 55 56 65 76 87 87 51 Greatest Support 107 | 40 40 40 40 42 42 42 42 20 48 35 35 35 66 100 100 100 107 Greatest Overweight (x) 2 | 2 . . 1 1 . . 2 2 2 1 1 1 1 1 . . . Average Overweight (x) . | . . . . . . . 1 2 . . 1 1 . . . . . Largest Inventory Capacity 10 | 8 8 8 8 10 10 10 10 10 10 10 10 10 10 10 10 10 5 Average Capacity 9 | 7 8 8 8 9 10 10 10 10 10 10 10 10 10 10 10 7 5 Most Carried 10 | 5 7 8 8 10 10 10 10 10 10 10 10 10 10 10 10 10 5 Average Carried 8 | 3 5 7 7 9 8 9 8 10 9 9 10 10 8 8 9 7 3 Final Capacity 10 | 8 8 8 8 10 10 10 10 10 10 10 10 10 10 10 10 5 5 Final Carried 10 | 5 7 8 8 10 10 10 10 10 10 10 10 10 10 9 10 5 2 Scrap Suit Usage (%) 1 | . . . . 1 . . . . . . . . . . . . . Class Distribution -------------------- 41% | Scavenger-Gunner 36% | Mutant 12% | Gunner 4% | Commander-Tank 4% | Scavenger-Mutant Dominant Class ---------------- Mutant | -10/Materials Mutant | -10/Mines Mutant | -10/Subcaves Mutant | -8/Materials Gunner | -7/Factory Gunner | -7/Lower Caves Scavenger-Gunner | -7/Lower Caves Scavenger-Gunner | -7/Data Miner Scavenger-Gunner | -6/Proximity Caves Scavenger-Gunner | -6/Factory Scavenger-Gunner | -6/Lower Caves Scavenger-Gunner | -6/Lower Caves Scavenger-Gunner | -5/Factory Scavenger-Gunner | -5/Extension Commander-Tank | -5/Cetus Commander-Tank | -5/Archives Scavenger-Mutant | -5/Hub_04(d) Resources | -11 -10 -10 -10 -8 -7 -7 -7 -7 -6 -6 -6 -6 -5 -5 -5 -5 -5 ----------- Run | Yrd Mat Min Sub Mat Fac Low Low Dat Pro Fac Low Low Fac Ext Cet Arc Hub Matter Collected 4311 | 247 . 135 254 769 43 322 464 . 542 348 57 10 105 479 296 . 240 Remotely . | . . . . . . . . . . . . . . . . . . Salvage Created 5584 | 21 31 . 267 849 38 493 470 . 660 339 363 . 172 1198 291 66 326 Parts 263 | 4 . . 15 46 2 17 31 . 24 19 14 . 6 51 9 2 23 Haulers Intercepted 3 | . . . . 2 1 . . . . . . . . . . . . Recyclers Shooed 8 | 1 . . . 3 . . . . . 4 . . . . . . . Parts Field Recycled . | . . . . . . . . . . . . . . . . . . Retrieved Matter . | . . . . . . . . . . . . . . . . . . Parts Self-Destructed 82 | . . . 7 . . 13 24 . 24 . 14 . . . . . . Prevented 2 | . . . . . . . . . 2 . . . . . . . . Parts Restored . | . . . . . . . . . . . . . . . . . . Kills | -11 -10 -10 -10 -8 -7 -7 -7 -7 -6 -6 -6 -6 -5 -5 -5 -5 -5 ------- Run | Yrd Mat Min Sub Mat Fac Low Low Dat Pro Fac Low Low Fac Ext Cet Arc Hub Combat Hostiles Destroyed 128 | . 1 . 6 24 . 16 19 . 16 6 9 . 3 16 4 1 7 Melee 1 | . . . . . . . . . . . . . . . . . 1 Guns 65 | . 1 . 5 7 . 3 9 . 16 6 7 . . 6 . . 5 Cannons 36 | . . . 1 15 . 2 . . . . 2 . 2 9 4 1 . AOE 24 | . . . . 2 . 11 10 . . . . . . . . . 1 Classes Destroyed 17 | 1 1 . 3 4 . 1 . . 1 . . . . 2 . . 4 Builder 4 | . . . . . . . . . . . . . . 3 . . 1 Tunneler 2 | 1 . . . . . . . . . 1 . . . . . . . Hauler 3 | . . . . 2 1 . . . . . . . . . . . . Recycler 2 | . . . . 2 . . . . . . . . . . . . . Operator 1 | . . . . . . . . . . . . . . . . . 1 Watcher 6 | . . . . 1 . . . . . 2 . . . 1 1 . 1 Swarmer 36 | . . . 2 7 . 4 11 . 3 2 5 . 1 1 . . . Cutter 4 | . . . . . . . . . . . . . . . . . 4 Grunt 45 | . 1 . 1 7 . 7 6 . 6 3 3 . 1 7 1 1 1 Brawler 4 | . . . . . . 2 . . 1 . . . 1 . . . . Duelist 3 | . . . . 1 . 2 . . . . . . . . . . . Sentry 22 | . . . 1 9 . 1 2 . . 1 1 . . 7 . . . Hunter 1 | . . . . . . . . . . . . . . . . . 1 Programmer 1 | . . . . . . . . . . . . . . . . . 1 Behemoth 1 | . . . . . . . . . . . . . . 1 . . . Cetus Guard 3 | . . . . . . . . . . . . . . . 3 . . Subdweller 3 | . . . 3 . . . . . . . . . . . . . . Thug 4 | . . . . . . . . . 4 . . . . . . . . Butcher 2 | . . . . . . . . . 1 . . . . 1 . . . Mutant 1 | . . . . . . . . . 1 . . . . . . . . Best Kill Streak 9 | 1 1 . 2 7 1 9 4 . 4 4 5 . 3 7 3 1 2 Combat Bots Only 9 | . 1 . 2 7 . 9 4 . 4 3 5 . 3 4 3 1 2 Max Kills in Single Turn 3 | 1 1 . 2 3 1 3 3 . 2 1 1 . 1 2 1 1 1 Gunslinging 1 | . . . . . . . 1 . 1 . . . . . . . . Exploded 3 | . . . . 2 . 3 3 . . . . . . . . . 1 Melee 1 | . . . . . . . . . . . . . . . . . 1 Uniques/NPCs Destroyed . | . . . . . . . . . . . . . . . . . . Combat | -11 -10 -10 -10 -8 -7 -7 -7 -7 -6 -6 -6 -6 -5 -5 -5 -5 -5 -------- Run | Yrd Mat Min Sub Mat Fac Low Low Dat Pro Fac Low Low Fac Ext Cet Arc Hub Hostile Shots Fired 826 | . 14 8 66 109 . 38 131 . 64 44 54 9 24 99 3 6 157 Missed 221 | . 4 1 17 29 . 18 40 . 17 11 17 3 4 21 1 3 35 Hits 605 | . 10 7 49 80 . 20 91 . 47 33 37 6 20 78 2 3 122 Melee 42 | . . . . 3 . 4 . . 5 . . . 3 . . . 27 Projectile 563 | . 10 7 49 77 . 16 91 . 42 33 37 6 17 78 2 3 95 AOE 1 | . . . . . . . . . . . . . . . . . 1 Critical Strikes 37 | . . . 1 2 . 5 4 . . 3 . . . 4 1 . 17 Actively Blocked 1 | . . . . . . . 1 . . . . . . . . . . Damage Taken 13574 | . 106 60 997 1237 . 410 1659 . 969 447 424 51 410 1533 65 1557 3649 Core 1727 | . 21 7 197 104 . 13 196 . 173 74 60 24 17 129 . 100 612 Absorbed by Shields 121 | . . . . . . . . . . . . . . 82 39 . . Redirected to Shielding 192 | . . . . . . . 100 . 56 36 . . . . . . . Regen/Repaired (Parts) 138 | . . . . . . . . . . 60 . . 78 . . . . Core Remaining (%) 63 | 100 . . 10 81 . . . . 45 . . 81 . . . . . Volleys Fired 386 | 4 9 6 54 81 1 18 26 . 45 19 13 . 5 43 8 3 51 Largest 4 | 2 2 2 2 2 3 3 3 . 3 4 4 . 4 4 4 4 3 Hottest 258 | 70 70 70 120 77 93 96 112 . 112 258 258 . 248 248 197 236 199 Shots Fired 947 | 8 18 12 95 157 3 42 57 . 134 76 52 . 20 172 27 12 62 Gun 618 | 8 18 12 76 45 1 25 52 . 134 72 39 . 10 65 3 3 55 Cannon 312 | . . . 18 111 2 7 . . . 4 13 . 10 107 24 9 7 Launcher 16 | . . . . 1 . 10 5 . . . . . . . . . . Special 1 | . . . 1 . . . . . . . . . . . . . . Kinetic 594 | 4 9 6 78 156 3 32 48 . 90 47 13 . 5 71 19 6 7 Thermal 327 | 4 9 6 17 . . . 4 . 44 29 39 . 15 101 8 6 45 Explosive 16 | . . . . 1 . 10 5 . . . . . . . . . . Electromagnetic 10 | . . . . . . . . . . . . . . . . . 10 Robot Hit Streak 29 | 4 7 1 21 16 4 17 29 . 23 14 9 . 5 20 14 3 15 Robot Miss Streak 9 | 3 2 9 2 3 . 2 3 . 2 3 3 . 2 5 2 3 5 Penetration Max 1 | . . . . . . . . . . . . . . 1 . . . Secondary Targets 9 | . . . . . . . 3 . 4 2 . . . . . . . Max Gunslinging Chain 1 | . . . . . . . 1 . 1 1 . . . . . . . Shots Hit Robots 686 | 4 11 1 64 108 2 36 47 . 116 58 25 . 12 122 18 6 56 Core Hits 322 | 3 2 . 12 40 1 32 42 . 60 31 12 . 6 43 9 5 24 Critical Kills 14 | . . . 1 . . 1 . . . . . . 1 7 4 . . Critical Parts Destroyed 18 | . . . . 1 1 2 1 . 1 2 . . . 5 1 4 . Critical Strikes 72 | . . . 1 9 2 3 2 . 5 5 . . 1 15 6 4 19 Burn 14 | . . . . . . . 1 . 4 3 . . . 2 . . 4 Meltdown 1 | . . . . . . . . . . . . . 1 . . . . Destroy 33 | . . . 1 1 1 3 1 . 1 2 . . . 13 6 4 . Blast 11 | . . . . 8 1 . . . . . . . . . . . 2 Sever 13 | . . . . . . . . . . . . . . . . . 13 Melee Attacks 25 | . . . . . . . . . . . . . . . . . 25 Impact . | . . . . . . . . . . . . . . . . . . Slashing 25 | . . . . . . . . . . . . . . . . . 25 Piercing . | . . . . . . . . . . . . . . . . . . Sneak Attacks . | . . . . . . . . . . . . . . . . . . Combat Hostiles . | . . . . . . . . . . . . . . . . . . Follow-up Attacks . | . . . . . . . . . . . . . . . . . . Damage Inflicted 16139 | 46 115 9 574 2490 34 1654 1886 . 2091 1241 655 . 332 2992 404 192 1424 Guns 7869 | 38 115 9 431 561 13 349 820 . 2091 1130 458 . 149 1000 64 32 609 Cannons 5222 | . . . 143 1751 21 159 . . . 111 197 . 183 1986 340 160 171 Explosions 2554 | . . . . 168 . 1146 1066 . . . . . . . . . 174 Melee 451 | . . . . . . . . . . . . . . . . . 451 Ramming 43 | 8 . . . 10 . . . . . . . . . 6 . . 19 Kinetic 7994 | 13 43 9 512 2312 34 508 756 . 1468 732 95 . 47 991 217 86 171 Thermal 5105 | 25 72 . 62 . . . 64 . 623 509 560 . 285 1995 187 106 617 Explosive 2380 | . . . . 168 . 1146 1066 . . . . . . . . . . Electromagnetic 166 | . . . . . . . . . . . . . . . . . 166 Impact . | . . . . . . . . . . . . . . . . . . Slashing 451 | . . . . . . . . . . . . . . . . . 451 Piercing . | . . . . . . . . . . . . . . . . . . Highest Corruption 32 | . . . . 2 . . . . 8 . . . 7 7 7 7 32 Average Corruption 6 | . . . . 1 . . . . 7 . . . 6 7 7 7 9 Corruption Purged 2 | . . . . 2 . . . . . . . . . . . . . Corruption Blocked 8 | . . . . . . . . . . . . . . . . . 8 Effects 104 | . . . . 13 . . . . 22 . . . 2 31 9 4 23 Message Errors 25 | . . . . 2 . . . . 4 . . . 1 9 3 1 5 Matter Fused 30 | . . . . 7 . . . . 8 . . . 1 8 1 . 5 Heat Flow Errors 9 | . . . . 1 . . . . 2 . . . . 2 1 1 2 Energy Discharges 12 | . . . . 2 . . . . 1 . . . . 5 1 . 3 Parts Fused 1 | . . . . . . . . . 1 . . . . . . . . Data Loss (minor) 13 | . . . . 1 . . . . 2 . . . . 3 1 1 5 Data Loss (major) 7 | . . . . . . . . . 2 . . . . 1 2 1 1 Misfires 3 | . . . . . . . . . . . . . . 2 . . 1 Alerts 1 | . . . . . . . . . 1 . . . . . . . . Weapon Failures 3 | . . . . . . . . . 1 . . . . 1 . . 1 Overload Shots . | . . . . . . . . . . . . . . . . . . Overflow Damage 227 | . . . . 47 . 9 102 . . 26 17 . . 1 . . 25 Projectiles 78 | . . . . 34 . . . . . 26 17 . . 1 . . . Explosions 149 | . . . . 13 . 9 102 . . . . . . . . . 25 Melee . | . . . . . . . . . . . . . . . . . . Knockbacks 24 | . . . 3 15 . 3 . . . . . . . 1 . 2 . Impact . | . . . . . . . . . . . . . . . . . . Kinetic 21 | . . . 3 12 . 3 . . . . . . . 1 . 2 . Secondary 3 | . . . . 3 . . . . . . . . . . . . . Self-Inflicted Damage 147 | . . . . 22 . . 86 . . . . . . . . . 39 Shots 4 | . . . . 1 . . 2 . . . . . . . . . 1 Rammed 6 | 2 . . . 3 . . . . . . . . . . . . 1 Targets Rammed 8 | 2 . . . 3 . . . . . . . . . 1 . . 2 Kicked . | . . . . . . . . . . . . . . . . . . Crushed 2 | . . . . . . . . . . . . . . 1 . . 1 Highest Temperature 581 | 60 178 100 . 195 18 110 48 . 201 350 215 . 69 54 9 91 581 Average Temperature 118 | 30 93 54 . 38 12 44 22 . 46 151 93 . 30 23 9 60 240 Received Heat Transfer 2439 | . 48 . 48 441 . 135 540 . 302 207 54 18 72 295 . 27 252 Effects 19 | . . . . . . . . . . 1 . . . . . . 18 Shutdowns 7 | . . . . . . . . . . . . . . . . . 7 Energy Bleed 5 | . . . . . . . . . . 1 . . . . . . 4 Interference 2 | . . . . . . . . . . . . . . . . . 2 Short Circuit 2 | . . . . . . . . . . . . . . . . . 2 Damage (minor) 1 | . . . . . . . . . . . . . . . . . 1 Damage (core) 2 | . . . . . . . . . . . . . . . . . 2 Siege Activations . | . . . . . . . . . . . . . . . . . . Martial Activations . | . . . . . . . . . . . . . . . . . . Shielding Activations . | . . . . . . . . . . . . . . . . . . Robots Disrupted . | . . . . . . . . . . . . . . . . . . Combat Hostiles . | . . . . . . . . . . . . . . . . . . Robots Corrupted . | . . . . . . . . . . . . . . . . . . Combat Hostiles . | . . . . . . . . . . . . . . . . . . Parts Fried 1 | . . . . . . . . . . . . . . . . . 1 Impact Corruptions . | . . . . . . . . . . . . . . . . . . Robots Melted 2 | . . . . . . . . . . . . . 1 1 . . . Combat Hostiles 2 | . . . . . . . . . . . . . 1 1 . . . Parts Melted 15 | . 1 . . . . . . . 2 2 1 . . 9 . . . Heat Transferred 9555 | 74 222 . 185 . . . 222 . 1776 1149 842 . 409 2922 259 185 1310 Parts Sabotaged . | . . . . . . . . . . . . . . . . . . Parts Stolen . | . . . . . . . . . . . . . . . . . . Parts Stripped . | . . . . . . . . . . . . . . . . . . Power Chain Reactions 2 | . . . . . . . . . . . . . . . . . 2 Alert | -11 -10 -10 -10 -8 -7 -7 -7 -7 -6 -6 -6 -6 -5 -5 -5 -5 -5 ------- Run | Yrd Mat Min Sub Mat Fac Low Low Dat Pro Fac Low Low Fac Ext Cet Arc Hub Maximum Alert Level 1 | . . . . 1 . . . . . . . . . 1 1 1 . Low Security (%) 72 | 100 100 100 . 42 100 . . . . 100 . . 100 59 6 41 100 Level 1 27 | . . . . 57 . . . . . . . . . 40 93 58 . Level 2 . | . . . . . . . . . . . . . . . . . . Level 3 . | . . . . . . . . . . . . . . . . . . Level 4 . | . . . . . . . . . . . . . . . . . . Level 5 . | . . . . . . . . . . . . . . . . . . High Security . | . . . . . . . . . . . . . . . . . . Max Security . | . . . . . . . . . . . . . . . . . . Peak Influence 395 | 5 20 59 . 372 142 . . . . 98 . . 46 379 395 338 77 Initial 178 | . . . . . 142 . . . . . . . 6 2 178 130 77 Average 108 | . . 8 . 191 94 . . . . 21 . . 7 166 311 195 18 Influence Increases 4386 | 5 42 79 70 762 23 340 445 . 245 227 205 . 70 880 307 413 273 Destroy 0b10 Robot/C 2860 | . 20 60 60 480 . 320 380 . 200 160 180 . 60 460 140 200 140 Destroy 0b10 Robot/NC 100 | 5 . . . 25 5 . . . . 15 . . . 25 5 5 15 Destroy Leader 386 | . . 10 10 136 2 20 20 . 30 34 10 . . 72 10 . 32 Allied During Kill 545 | . . 9 . . . . . . . 13 . . . 193 146 184 . Successful Hack 78 | . 22 . . 36 16 . . . . 4 . . . . . . . Disable Machine 15 | . . . . 15 . . . . . . . . . . . . . Destroy Structure 132 | . . . . 25 . . . . . 1 . . 10 40 6 24 26 Lose Combat Pursuer 270 | . . . . 45 . . 45 . 15 . 15 . . 90 . . 60 Influence Decreases 4384 | 5 42 79 70 449 291 193 637 . 245 227 154 41 74 567 301 515 494 Entered New Map 728 | . . . . . 171 18 38 . . . . 11 4 4 141 195 146 Time Decay 2697 | 5 42 59 70 389 120 175 469 . 195 177 144 30 56 353 150 80 183 Lost Part 619 | . . . . 60 . . 130 . 50 10 10 . 14 90 10 80 165 Lost Ally 340 | . . 20 . . . . . . . 40 . . . 120 . 160 . Squads Dispatched 13 | . . . . 2 . . . . . 2 . . . 4 1 . 4 Investigation 3 | . . . . 1 . . . . . . . . . 1 1 . . Extermination 2 | . . . . . . . . . . 1 . . . . . . 1 Reinforcement 7 | . . . . . . . . . . 1 . . . 3 . . 3 Assault . | . . . . . . . . . . . . . . . . . . Garrison 1 | . . . . 1 . . . . . . . . . . . . . Intercept . | . . . . . . . . . . . . . . . . . . Searches Triggered . | . . . . . . . . . . . . . . . . . . Construction Impeded 1 | . . . . . . . . . . . . . . 1 . . . Haulers Reinforced . | . . . . . . . . . . . . . . . . . . Active Scanning Responses . | . . . . . . . . . . . . . . . . . . Cargo Convoy Interrupts . | . . . . . . . . . . . . . . . . . . Stealth | -11 -10 -10 -10 -8 -7 -7 -7 -7 -6 -6 -6 -6 -5 -5 -5 -5 -5 --------- Run | Yrd Mat Min Sub Mat Fac Low Low Dat Pro Fac Low Low Fac Ext Cet Arc Hub Distress Signals 10 | . 1 . . 5 . . . . . . . . . 2 1 . 1 Communications Jammed . | . . . . . . . . . . . . . . . . . . Distress Signals . | . . . . . . . . . . . . . . . . . . Times Spotted 244 | . 7 3 20 36 . 16 23 . 17 11 9 1 3 35 8 26 29 Peak Tracking Total 21 | . 5 3 10 6 . 9 12 . 4 4 5 1 3 10 5 21 13 Tactical Retreats 13 | . . . . 3 . . 1 . 1 . 1 . . 3 . . 4 Traps | -11 -10 -10 -10 -8 -7 -7 -7 -7 -6 -6 -6 -6 -5 -5 -5 -5 -5 ------- Run | Yrd Mat Min Sub Mat Fac Low Low Dat Pro Fac Low Low Fac Ext Cet Arc Hub Traps Triggered 6 | . . . 3 1 . . . . . . . . 1 . . . 1 Indirectly . | . . . . . . . . . . . . . . . . . . Trap Hack Attempts . | . . . . . . . . . . . . . . . . . . Triggered . | . . . . . . . . . . . . . . . . . . Disarmed . | . . . . . . . . . . . . . . . . . . Reprogrammed . | . . . . . . . . . . . . . . . . . . Reused . | . . . . . . . . . . . . . . . . . . Traps Extracted . | . . . . . . . . . . . . . . . . . . Installed . | . . . . . . . . . . . . . . . . . . Triggered . | . . . . . . . . . . . . . . . . . . Machines | -11 -10 -10 -10 -8 -7 -7 -7 -7 -6 -6 -6 -6 -5 -5 -5 -5 -5 ---------- Run | Yrd Mat Min Sub Mat Fac Low Low Dat Pro Fac Low Low Fac Ext Cet Arc Hub Machines Disabled 8 | . . . . 1 . 2 4 . . . . . . 1 . . . Max in Single Turn 2 | . . . . 1 . 2 1 . . . . . . 1 . . . Network Hub 1 | . . . . . . . . . . . . . . . . . 1 Machines Repaired . | . . . . . . . . . . . . . . . . . . Machines Dismantled . | . . . . . . . . . . . . . . . . . . Machines Sabotaged . | . . . . . . . . . . . . . . . . . . Overloaded Fab Kills . | . . . . . . . . . . . . . . . . . . Hacking | -11 -10 -10 -10 -8 -7 -7 -7 -7 -6 -6 -6 -6 -5 -5 -5 -5 -5 --------- Run | Yrd Mat Min Sub Mat Fac Low Low Dat Pro Fac Low Low Fac Ext Cet Arc Hub Machines Accessed 40 | . 4 . . 11 1 1 1 4 . 4 1 . 3 5 3 . 2 Terminals 27 | . 4 . . 9 1 . 1 . . 2 . . 1 4 3 . 2 Fabricators . | . . . . . . . . . . . . . . . . . . Repair Stations 4 | . . . . . . . . . . 2 . . 1 1 . . . Recycling Units . | . . . . . . . . . . . . . . . . . . Scanalyzers 2 | . . . . 2 . . . . . . . . . . . . . Garrison Access 1 | . . . . . . . . . . . . . 1 . . . . Total Hacks 123 | . 12 . . 33 2 1 4 31 . 9 1 . 5 16 5 . 4 Successful 72 | . 9 . . 14 1 1 4 31 . 2 1 . 3 4 1 . 1 Failed 50 | . 3 . . 18 1 . . . . 7 . . 2 12 4 . 3 Catastrophic 12 | . . . . 5 1 . . . . 3 . . 1 1 1 . . Database Lockouts 1 | . . . . 1 . . . . . . . . . . . . . Manual 30 | . 1 . . 12 1 . . . . 5 . . . 6 3 1 1 Terminals 68 | . 12 . . 24 2 . 4 . . 5 . . 1 11 5 . 4 Fabricators . | . . . . . . . . . . . . . . . . . . Repair Stations 12 | . . . . . . . . . . 4 . . 3 5 . . . Recycling Units . | . . . . . . . . . . . . . . . . . . Scanalyzers 9 | . . . . 9 . . . . . . . . . . . . . Garrison Access 1 | . . . . . . . . . . . . . 1 . . . . Terminal Hacks 61 | . 9 . . 8 1 1 4 31 . . 1 . 1 3 1 . 1 Record 18 | . . . . . . . 4 11 . . 1 . . . 1 . 1 Part Schematic 12 | . . . . . . . . 12 . . . . . . . . . Robot Schematic 5 | . . . . . . . . 5 . . . . . . . . . Robot Analysis 2 | . . . . 1 1 . . . . . . . . . . . . Prototype ID Bank 7 | . 2 . . 1 . . . 3 . . . . . 1 . . . Open Door 2 | . . . . . . 1 . . . . . . 1 . . . . Branch Access Points 2 | . 1 . . 1 . . . . . . . . . . . . . Scanalyzer Index 1 | . . . . 1 . . . . . . . . . . . . . Locate Traps 6 | . 3 . . 2 . . . . . . . . . 1 . . . Maintenance Status 1 | . 1 . . . . . . . . . . . . . . . . Zone Layout 5 | . 2 . . 2 . . . . . . . . . 1 . . . Fabricator Hacks . | . . . . . . . . . . . . . . . . . . Repair Station Hacks 5 | . . . . . . . . . . 2 . . 2 1 . . . Scan Component 3 | . . . . . . . . . . 1 . . 1 1 . . . Repair 2 | . . . . . . . . . . 1 . . 1 . . . . Recycling Unit Hacks . | . . . . . . . . . . . . . . . . . . Scanalyzer 6 | . . . . 6 . . . . . . . . . . . . . Insert Component 2 | . . . . 2 . . . . . . . . . . . . . Analyze 2 | . . . . 2 . . . . . . . . . . . . . Retrieve Study 2 | . . . . 2 . . . . . . . . . . . . . Garrison Access Hacks . | . . . . . . . . . . . . . . . . . . Unauthorized Hacks . | . . . . . . . . . . . . . . . . . . Terminals . | . . . . . . . . . . . . . . . . . . Fabricators . | . . . . . . . . . . . . . . . . . . Repair Stations . | . . . . . . . . . . . . . . . . . . Recycling Units . | . . . . . . . . . . . . . . . . . . Scanalyzers . | . . . . . . . . . . . . . . . . . . Garrison Access . | . . . . . . . . . . . . . . . . . . Data Cores Recovered 2 | . . . . . . . . . . . . . . 1 . . 1 Used 1 | . . . . . . . . . . . . . . 1 . . . Hacking Detections 32 | . 3 . . 11 1 . 1 . . 4 . . 3 4 3 . 2 Full Trace Events 3 | . . . . 1 . . . . . . . . . 1 1 . . Feedback Events . | . . . . . . . . . . . . . . . . . . Feedback Blocked . | . . . . . . . . . . . . . . . . . . Robot Schematics Acquired 5 | . . . . . . . . 5 . . . . . . . . . Robots Built . | . . . . . . . . . . . . . . . . . . Authchips . | . . . . . . . . . . . . . . . . . . Time . | . . . . . . . . . . . . . . . . . . Total Robot Build Rating . | . . . . . . . . . . . . . . . . . . Part Schematics Acquired 12 | . . . . . . . . 12 . . . . . . . . . Parts Built . | . . . . . . . . . . . . . . . . . . Authchips . | . . . . . . . . . . . . . . . . . . Time . | . . . . . . . . . . . . . . . . . . Total Part Build Rating . | . . . . . . . . . . . . . . . . . . Part Studies Acquired 2 | . . . . 2 . . . . . . . . . . . . . Parts Repaired 2 | . . . . . . . . . . 1 . . 1 . . . . Time 63 | . . . . . . . . . . 44 . . 19 . . . . Parts Recycled . | . . . . . . . . . . . . . . . . . . Recycled Matter . | . . . . . . . . . . . . . . . . . . Retrieved Matter . | . . . . . . . . . . . . . . . . . . Retrieved Components . | . . . . . . . . . . . . . . . . . . Parts Scanalyzed 2 | . . . . 2 . . . . . . . . . . . . . Part Schematics Acquired . | . . . . . . . . . . . . . . . . . . Parts Damaged . | . . . . . . . . . . . . . . . . . . Bothacking | -11 -10 -10 -10 -8 -7 -7 -7 -7 -6 -6 -6 -6 -5 -5 -5 -5 -5 ------------ Run | Yrd Mat Min Sub Mat Fac Low Low Dat Pro Fac Low Low Fac Ext Cet Arc Hub Used RIF Installer . | . . . . . . . . . . . . . . . . . . Robots Hacked . | . . . . . . . . . . . . . . . . . . Non-combat . | . . . . . . . . . . . . . . . . . . Combat . | . . . . . . . . . . . . . . . . . . Robot Hacks Applied . | . . . . . . . . . . . . . . . . . . Relay Couplers Released . | . . . . . . . . . . . . . . . . . . Fabnet Peak Effective % . | . . . . . . . . . . . . . . . . . . Robots Rewired 10 | . . . . . . . . . 2 . . . . 8 . . . Allies Hacked . | . . . . . . . . . . . . . . . . . . Hacks Repelled . | . . . . . . . . . . . . . . . . . . Allies | -11 -10 -10 -10 -8 -7 -7 -7 -7 -6 -6 -6 -6 -5 -5 -5 -5 -5 -------- Run | Yrd Mat Min Sub Mat Fac Low Low Dat Pro Fac Low Low Fac Ext Cet Arc Hub Total Allies 27 | . . 3 . . . . . . 2 . . . . 17 5 . . Largest Group 15 | . . 3 2 . . . . . 2 2 . . . 10 15 14 . Highest-Rated Group 906 | . . 40 32 . . . . . 62 62 . . . 426 906 810 . Highest-Rated Ally 159 | . . 16 16 . . . . . 31 31 . . . 159 159 159 . Total Orders . | . . . . . . . . . . . . . . . . . . Ally Attacks 220 | . . 19 32 . . . . . . 16 . . . 76 30 47 . Total Damage 4747 | . . 165 160 . . . . . . 166 . . . 1917 524 1815 . Kills 30 | . . 3 3 . . . . . . 2 . . . 8 3 11 . Allies Corrupted . | . . . . . . . . . . . . . . . . . . Allies Melted 2 | . . . . . . . . . . . . . . 1 . 1 . Intel | -11 -10 -10 -10 -8 -7 -7 -7 -7 -6 -6 -6 -6 -5 -5 -5 -5 -5 ------- Run | Yrd Mat Min Sub Mat Fac Low Low Dat Pro Fac Low Low Fac Ext Cet Arc Hub Active Infowar (turns) 5770 | 16 460 387 1878 1421 259 857 199 . . . . . . . . . 293 Seismic 5770 | 16 460 387 1878 1421 259 857 199 . . . . . . . . . 293 Robot Analysis Total 2 | . . . . 1 1 . . . . . . . . . . . . Derelict Logs Recovered 9 | . . 1 2 . . . 2 . 2 . 1 1 . . . . . Drone Launches . | . . . . . . . . . . . . . . . . . . Drone Recoveries . | . . . . . . . . . . . . . . . . . . Exploration | -11 -10 -10 -10 -8 -7 -7 -7 -7 -6 -6 -6 -6 -5 -5 -5 -5 -5 ------------- Run | Yrd Mat Min Sub Mat Fac Low Low Dat Pro Fac Low Low Fac Ext Cet Arc Hub Turns Passed 12346 | 103 460 387 1878 1493 259 857 1265 411 1085 766 795 68 349 1047 302 165 656 Spaces Moved 5839 | 49 226 194 982 660 161 475 573 172 485 355 387 36 159 459 120 95 251 Core 7 | 7 . . . . . . . . . . . . . . . . . Treads 4036 | 42 226 194 485 361 161 475 573 172 386 . . . 36 459 120 95 251 Legs 1796 | . . . 497 299 . . . . 99 355 387 36 123 . . . . Wheels . | . . . . . . . . . . . . . . . . . . Hover . | . . . . . . . . . . . . . . . . . . Flight . | . . . . . . . . . . . . . . . . . . Fastest Speed 50 | 50 160 160 120 130 157 152 157 240 120 120 190 190 160 160 160 160 160 Average Speed 172 | 152 160 160 168 152 157 156 201 240 180 170 190 190 183 160 160 160 164 Slowest Speed 240 | 160 160 160 190 240 157 157 240 240 240 190 190 190 190 220 160 160 165 Overloaded Moves . | . . . . . . . . . . . . . . . . . . Propulsion Burnouts . | . . . . . . . . . . . . . . . . . . Robots Hopped . | . . . . . . . . . . . . . . . . . . Potential Cave-ins . | . . . . . . . . . . . . . . . . . . Cave-ins Triggered . | . . . . . . . . . . . . . . . . . . Exploration Rate (%) 48 | 4 41 50 66 66 5 65 70 75 74 12 85 5 6 73 60 89 20 Regions Visited 17 Branch Regions 12 Pre-discovered Areas 3 | . . 1 . . . . 1 1 . . . . . . . . . Known Exits Taken 2 | . 1 . . . . . . . . 1 . . . . . . . Unknown Exits Taken 15 | 1 . 1 1 1 1 1 1 1 1 . 1 1 1 1 1 1 . Scrap Searched 17 | . . 1 9 . . . 2 . 2 . 2 1 . . . . . Spaces Dug 1 | . . . . 1 . . . . . . . . . . . . . Terrain Destroyed 176 | . . . 3 25 . 68 33 . . . 12 . 5 14 . . 16 Melee . | . . . . . . . . . . . . . . . . . . Projectile 47 | . . . 3 11 . . . . . . 12 . 5 14 . . 2 AOE 129 | . . . . 14 . 68 33 . . . . . . . . . 14 Terrain Rammed . | . . . . . . . . . . . . . . . . . . Walls Destroyed . | . . . . . . . . . . . . . . . . . . Machines Disabled . | . . . . . . . . . . . . . . . . . . Actions | -11 -10 -10 -10 -8 -7 -7 -7 -7 -6 -6 -6 -6 -5 -5 -5 -5 -5 --------- Run | Yrd Mat Min Sub Mat Fac Low Low Dat Pro Fac Low Low Fac Ext Cet Arc Hub Total 7345 | 66 308 263 1112 990 165 549 636 171 599 476 417 36 201 667 212 101 376 Wait 718 | . 72 52 47 196 . 47 12 . 39 68 14 . 19 63 77 . 12 Move 5823 | 49 225 193 981 659 160 474 572 171 484 354 386 35 158 458 119 94 251 Hop . | . . . . . . . . . . . . . . . . . . Pick Up 94 | 5 2 6 8 16 2 2 11 . 9 9 1 . 4 10 3 1 5 Fast Attach 56 | 7 . . 4 4 . . 2 . 7 3 . 1 2 4 1 . 21 Attach 44 | . . . 4 5 2 1 11 . 2 2 . . 5 6 . 1 5 Detach . | . . . . . . . . . . . . . . . . . . Swap 52 | . . . 5 12 . 5 2 . 2 10 1 . 7 5 1 . 2 Drop 68 | . . 6 9 14 . 2 . . 7 11 2 . 1 11 3 . 2 Fire 386 | 4 9 6 54 81 1 18 26 . 45 19 13 . 5 43 8 3 51 Melee 25 | . . . . . . . . . . . . . . . . . 25 Ram . | . . . . . . . . . . . . . . . . . . Kick . | . . . . . . . . . . . . . . . . . . Crush 7 | 1 . . . 3 . . . . . . . . . 1 . . 2 Escape Stasis . | . . . . . . . . . . . . . . . . . . Rewire 72 | . . . . . . . . . 4 . . . . 66 . 2 . Trap . | . . . . . . . . . . . . . . . . . . Miscellaneous . | . . . . . . . . . . . . . . . . . . Route ------- -11/Scrapyard -10/Materials (discovered 2 exits: [*Mat] / *Min) -10/Mines (discovered 2 exits: [*Mat] / [*Sub]) -10/Subcaves (discovered 2 exits: *Mat / [*Rec]) -8/Materials -7/Factory -7/Lower Caves -7/Lower Caves -7/Data Miner -6/Proximity Caves -6/Factory (discovered 2 exits: *Low x2) -6/Lower Caves -6/Lower Caves -5/Factory (discovered 2 exits: Upp / *Ext) -5/Extension (discovered 2 exits: [*Fac] / *Cet) -5/Cetus -5/Archives (discovered 2 exits: [*Fac] / *Hub) -5/Hub_04(d) History --------- Turn | Location | Event 10 | -11/Scrapyard | Discovered new exit (range 16) 104 | -11/Scrapyard | Entered Materials 142 | -10/Materials | Identified exit to Mines 285 | -10/Materials | Discovered new exit (range 16) 318 | -10/Materials | Build established: Mutant 564 | -10/Materials | Entered Mines 571 | -10/Mines | Assisted by bots powering up and referring to "LRC-V3" 577 | -10/Mines | Met a Derelict bent on vengeance 713 | -10/Mines | Found a Scrap Suit stashed away for nefarious purposes 717 | -10/Mines | Found Scrap Suit 728 | -10/Mines | Discovered new exit (range 10) 943 | -10/Mines | Discovered new exit (range 5) 951 | -10/Mines | Entered Subcaves 951 | -10/Subcaves | Accompanied by 2 allies 1031 | -10/Subcaves | Learned Materials emergency access door positions 1715 | -10/Subcaves | Learned 2 Materials zone layouts 1795 | -10/Subcaves | Disturbed a concealed Subdweller 1843 | -10/Subcaves | Core integrity fell below 50% 1851 | -10/Subcaves | Lost 3 parts (2n1w) 2261 | -10/Subcaves | Shifting Twisted Machinery released Riot Gun 2264 | -10/Subcaves | Shifting Twisted Machinery released Mak. Power Source 2391 | -10/Subcaves | Core integrity fell below 20% 2548 | -10/Subcaves | A swath of the cavern ceiling suddenly collapsed 2809 | -10/Subcaves | Discovered new exit (range 16) 2828 | -10/Subcaves | Discovered new exit (range 15) 2829 | -10/Subcaves | Entered Materials 2829 | -8/Materials | Evolved 4 slots: Utility x4 3378 | -8/Materials | Destroyed 7 combat bots 3418 | -8/Materials | Garrison activated, responded to threat 3799 | -8/Materials | Central database locked down 4316 | -8/Materials | Discovered new exit (range 3) 4322 | -8/Materials | Entered Factory 4322 | -7/Factory | Evolved 2 slots: Utility x1, Weapon x1 4558 | -7/Factory | Discovered new exit (range 6) 4581 | -7/Factory | Entered Lower Caves 4610 | -7/Lower Caves | Build established: Gunner 4950 | -7/Lower Caves | Encountered a Warlord checkpoint 5270 | -7/Lower Caves | Attracted the attention of an 0b10 outpost 5316 | -7/Lower Caves | Destroyed 9 combat bots 5430 | -7/Lower Caves | Discovered new exit (range 6) 5438 | -7/Lower Caves | Entered another Lower Caves area 5449 | -7/Lower Caves | Learned 4 Factory zone layouts 5775 | -7/Lower Caves | Learned 4 Factory zone layouts 5825 | -7/Lower Caves | Attracted the attention of an 0b10 base 5861 | -7/Lower Caves | Lost 6 parts (1p3u2w) 6104 | -7/Lower Caves | Learned location of Armory (-3) 6104 | -7/Lower Caves | Learned Factory trap positions 6104 | -7/Lower Caves | Learned Factory terminal intel 6245 | -7/Lower Caves | Build established: Scavenger-Gunner 6648 | -7/Lower Caves | Encountered a Warlord checkpoint 6691 | -7/Lower Caves | Discovered new exit (range 7) 6703 | -7/Lower Caves | Entered Data Miner 6703 | -7/Data Miner | Discovered new exit (range 6) 6751 | -7/Data Miner | Met Data Miner 6819 | -7/Data Miner | Learned location of Section 7 (-2) 6819 | -7/Data Miner | Acquired the access code to Warlord's prototype stash 6864 | -7/Data Miner | Received God Mode back door access code from Data Miner 7114 | -7/Data Miner | Entered Proximity Caves 7575 | -6/Proximity Caves | Lost 3 parts (1p1n1u) 7915 | -6/Proximity Caves | Learned Factory stockpile data 7993 | -6/Proximity Caves | Core integrity fell below 50% 8047 | -6/Proximity Caves | Attacked by a faux Warlord 8082 | -6/Proximity Caves | Lost 3 parts (1p1n1u) 8183 | -6/Proximity Caves | Discovered new exit (range 13) 8199 | -6/Proximity Caves | Entered Factory 8199 | -6/Factory | Accompanied by 2 allies 8199 | -6/Factory | Evolved 2 slots: Utility x1, Weapon x1 8200 | -6/Factory | Identified exit to Lower Caves 8202 | -6/Factory | Loaded intel: 97 trap records 8204 | -6/Factory | Loaded intel: 26 terminal locations 8379 | -6/Factory | Repaired Mak. Shrapnel Gun 8936 | -6/Factory | Discovered exit to Lower Caves (range 16) 8965 | -6/Factory | Entered Lower Caves 9079 | -6/Lower Caves | Learned Factory interactive machine intel 9151 | -6/Lower Caves | Encountered a Warlord checkpoint 9270 | -6/Lower Caves | Entered a destroyed Warlord outpost 9423 | -6/Lower Caves | Attracted the attention of an 0b10 checkpoint 9730 | -6/Lower Caves | Discovered new exit (range 15) 9760 | -6/Lower Caves | Entered another Lower Caves area 9768 | -6/Lower Caves | Discovered new exit (range 13) 9826 | -6/Lower Caves | Attracted the attention of an 0b10 checkpoint 9828 | -6/Lower Caves | Entered Factory 9828 | -5/Factory | Evolved 2 slots: Power x1, Propulsion x1 9829 | -5/Factory | Identified exit to Upper Caves 9830 | -5/Factory | Loaded intel: 56 interactive machine locations 9933 | -5/Factory | Repaired Carbon-fiber Leg 10111 | -5/Factory | Lost 4 parts (3u1w) 10170 | -5/Factory | Discovered new exit (range 6) 10177 | -5/Factory | Entered Extension 10230 | -5/Extension | Rescued a captive Derelict 10231 | -5/Extension | Rescued a captive Derelict 10293 | -5/Extension | Rescued a captive Derelict 10583 | -5/Extension | Spotted B-75 Beast 10619 | -5/Extension | Spotted B-75 Beast 10639 | -5/Extension | Lost 3 parts (2u1w) 10646 | -5/Extension | Allies destroyed B-75 Beast 10669 | -5/Extension | Destroyed B-75 Beast 10689 | -5/Extension | Lost 5 allies 10692 | -5/Extension | Lost 3 parts (1n1u1w) 10772 | -5/Extension | Rescued a captive Derelict 10772 | -5/Extension | Rescued a captive Derelict 10848 | -5/Extension | Rescued A7 11076 | -5/Extension | Rescued a captive Derelict 11119 | -5/Extension | Rescued a captive Derelict 11120 | -5/Extension | Rescued a captive Derelict 11146 | -5/Extension | Rescued a captive Derelict 11179 | -5/Extension | Discovered new exit (range 10) 11181 | -5/Extension | Discovered new exit (range 6) 11224 | -5/Extension | Entered Cetus 11224 | -5/Cetus | Accompanied by 10 allies (A7) 11229 | -5/Cetus | Acquired a Cetus Manufacturing Module code from A7 11245 | -5/Cetus | Spotted Cetus Guard 11245 | -5/Cetus | Destroyed Cetus Guard 11246 | -5/Cetus | Spotted Cetus Guard 11248 | -5/Cetus | Spotted Cetus Guard 11249 | -5/Cetus | Spotted Cetus Guard 11252 | -5/Cetus | Destroyed Cetus Guard 11257 | -5/Cetus | Destroyed Cetus Guard 11262 | -5/Cetus | Allies destroyed Cetus Guard 11353 | -5/Cetus | Build established: Commander-Tank 11382 | -5/Cetus | Started Cetus Manufacturing Module 11407 | -5/Cetus | Manufactured an Enhanced Grunt 11409 | -5/Cetus | Discovered new exit (range 15) 11432 | -5/Cetus | Manufactured an Enhanced Grunt 11457 | -5/Cetus | Manufactured an Enhanced Grunt 11482 | -5/Cetus | Manufactured an Enhanced Grunt 11507 | -5/Cetus | Manufactured an Enhanced Grunt 11526 | -5/Cetus | Entered Archives 11526 | -5/Archives | Accompanied by 14 allies (A7) 11552 | -5/Archives | Met Zhirov 11558 | -5/Archives | Reinforcements dispatched to Archives 11575 | -5/Archives | Unable to access archive contents 11593 | -5/Archives | Discovered new exit (range 16) 11603 | -5/Archives | Reinforcements dispatched to Archives 11605 | -5/Archives | Zhirov warped through subspace 11616 | -5/Archives | Discovered new exit (range 13) 11623 | -5/Archives | Zhirov detonated Archives 11654 | -5/Archives | Lost 8 parts (1p4u3w) 11654 | -5/Archives | Lost 13 allies 11691 | -5/Archives | Entered Hub_04(d) 12086 | -5/Hub_04(d) | Lost 4 parts (1n3u) 12140 | -5/Hub_04(d) | Build established: Scavenger-Mutant 12189 | -5/Hub_04(d) | System corruption reached 10% 12233 | -5/Hub_04(d) | Lost 4 parts (2u2w) 12278 | -5/Hub_04(d) | Spotted B-75 Beast 12283 | -5/Hub_04(d) | Core integrity fell below 50% 12315 | -5/Hub_04(d) | Lost 3 parts (1u2w) 12319 | -5/Hub_04(d) | Network Hub disabled 12324 | -5/Hub_04(d) | Spotted Lightning 12330 | -5/Hub_04(d) | Core integrity fell below 20% 12339 | -5/Hub_04(d) | Spotted Lightning 12342 | -5/Hub_04(d) | Spotted Lightning 12343 | -5/Hub_04(d) | Spotted Lightning 12343 | -5/Hub_04(d) | Spotted Lightning 12344 | -5/Hub_04(d) | System corruption reached 30% 12344 | -5/Hub_04(d) | Spotted Lightning 12347 | -5/Hub_04(d) | Spotted Lightning 12347 | -5/Hub_04(d) | Self-destructed Last Messages --------------- 12337_ K-01 Serf knocked back. 12337_ Slug penetrates B-75 Beast. 12337_ EMDS Slug penetrates Wall. 12338_ System corrupted: Substantial component data lost. 12338_ EMDS Slug penetrates Wall. 12340_ Target Analyzer destroyed. 12341_ Wall collapses. 12341_ Slug penetrates Wall. 12341_ B-75 Beast Magnetic Acceleration Cannon blasted off. 12341_ EMDS Slug penetrates Wall. 12343_ Penetrated by Slug. 12343_ Rnf. Fission Core destroyed. 12343_ EMDS Slug penetrates Wall. 12343_ B-75 Beast Hvy. Machine Gun blasted off. 12343_ Penetrated by EMDS Slug. 12345_ EMDS Slug penetrates Wall. 12345_ Penetrated by EMDS Slug. 12345_ EMDS Slug penetrates Wall. Map ----- +----------------------------------------------------+ | ??????????????????????????????????# #???# | | ??????????????????????????????????# ####### | | ??????????????????????????????????# + | | ??????????????????????????????????# ####### | | ??????????????????????????????????# ## | | ??????????????????????????????????# ## ! | | ???????????????????? ?######??????# ## | | ???????????????????? # ???# ## | | ??????????????#""####" ?# #####+# | | ????????????###" """""""""""""""""" ## | | ????????????? " ! " "" ## " " | | ?????????????? " ; " % ## " " | | ??????????????# " ; ! % " ## " " | | ??????????????? ; ; ;;!="####### | | ??????????????#k " ; ]BB !%%! # | | ???????????????%h" t; BB % # | | ?????????????#"? ; ]; ! ;;;#;#=## # | | ????????????###+#i##;;; =%=; *[=! #?? ###### | | ????????????# h ; ; = ; =%####???#????? | | ????????????# hh *; ; ;;;##???????????? | | ????????????# ; ; ;; #???????????? | | ????????????# % h #;;;;%%;;;;;;;; ###?????????? | | ????????????# ; *%| =% R ????????? | | ????????????# ; =w% % ????????? | | ????????????# ! ;;;;;;;;;;; = #??????????? | | ????????????# #; @ ; %|! ;#?????????? | | ????????????# #; % % ; ||! ; ????????? | | ????????????# ?#; % ; !%!! ; ????????? | | ???????????#" | ??## ; !||= ;u?????????? | | ???????????###"###???# ;;;;;;k!; ?????????? | | ?????????????#???????# # #=%=??????????? | | ?????????????????????# #? H ;??????????? | | ?????????????????????# #?? ; ???????????? | | ?????????????????????# ] #??? #h ???????????? | | ?????????????????????#;;;;;####????#?k???????????? | | ?????????????????????# ;####?????????????????????? | | ?????????????????????# #?????????????????????????? | | ?????????????????????# ??????????????????????????? | | ?????????????????????# ??????????????????????????? | | ?????????????????????#???????????????????????????? | | ?????????????????????????????????????????????????? | | ?????????????????????????????????????????????????? | | ?????????????????????????????????????????????????? | | ?????????????????????????????????????????????????? | | ?????????????????????????????????????????????????? | | ?????????????????????????????????????????????????? | | ?????????????????????????????????????????????????? | | ?????????????????????????????????????????????????? | | ?????????????????????????????????????????????????? | | ?????????????????????????????????????????????????? | +----------------------------------------------------+ Best States ------------- Heat Dissipation 109 Energy Generation 33 Energy Capacity 1010 Matter Stores 300 Matter Capacity 300 Sight Range 16 Terrain Scan Density 10 Base Temperature (-) 150 Corruption Block 5 Armor Coverage 450 Power Shielding 66 Propulsion Shielding 66 Weapon Shielding 66 Phase Shifting 5 Evasion (%) 63 Targeting Accuracy 14 Melee Accuracy 5 Target Analysis 8 Recoil Reduction 6 Particle Charging 20 Kinecelleration 30 Offensive Hacking 10 Item Schematics ----------------- Combat Drone Bay | -7/Data Miner | Free Lgt. Regenerative Plating | -7/Data Miner | Free Cld. Cesium-ion Thruster | -7/Data Miner | Free Exp. Targeting Computer | -7/Data Miner | Free Imp. Lightning Gun | -7/Data Miner | Free Thunder Leg | -7/Data Miner | Free Adv. Recoil Stabilizer | -7/Data Miner | Free Imp. Remote Datajack | -7/Data Miner | Free System Guard | -7/Data Miner | Free Adv. Field Recycling Unit | -7/Data Miner | Free Imp. Gyrokinetic Inverter | -7/Data Miner | Free Imp. Armor Integrity Analyzer | -7/Data Miner | Free Robot Schematics ------------------ R-10 Processor | -7/Data Miner | Free B-48 Gladiator | -7/Data Miner | Free A-15 Conveyor | -7/Data Miner | Free L-41 Fighter | -7/Data Miner | Free B-60 Warrior | -7/Data Miner | Free Fabricated ------------ Nothing Repaired ---------- Mak. Shrapnel Gun | 14% | -6/Factory Carbon-fiber Leg | 29% | -5/Factory Studied --------- Hvy. Assault Rifle | -8/Materials | Hacked Lgt. Treads | -8/Materials | Hacked Alien Tech Used ----------------- None Achievements -------------- Bumper Bots DIY Cooler Prison Break Project G-00 Challenges ------------ None Game ------ Seed NuclearCorruptionInsulator Manual? 0 Play Time 02:20:20 Cumulative 43.8 hours Start 2025.11.09 @ 17:23:50 End 2025.11.10 @ 13:54:42 Sessions 3 Manual Loads 0 Difficulty Rogue Special Mode None Game No. 56 Rogue 56 Adventurer 0 Explorer 0 Win Type - Total 0 Types 0/0/0/0/0/0/0/0/0/0 Lore% 44 Gallery% 36 Achievement% 23 Wizard Run 0 Options --------- Layout 2 ASCII 0 Keyboard 0 Movement Numpad Keybinds 0 Fullscreen 1 Font 24/Smallcaps Map View 50x44 Zoom Use 0% Tactical HUD 1 Map Filters NONE Filters NONE Steam 1 RUN: 377813f2-2520-4f8f-b012-c800a88be56f